[Event "*** Titled Tuesday Blitz"]
[Site "Chess.com"]
[Date "2020.10.20"]
[Round "5"]
[White "beto-betun"]
[Black "Cocaino74"]
[Result "0-1"]
[WhiteElo "2179"]
[BlackElo "2381"]
[TimeControl "180+1"]
[EndTime "10:58:19 PDT"]
[Termination "Cocaino74 won by resignation"]

1. d4 {[%clk 0:02:48.9]} 1... d5 {[%clk 0:02:59.6]} 2. Nf3 {[%clk 0:02:49.1]}
2... e6 {[%clk 0:03:00]} 3. g3 {[%clk 0:02:48.9]} 3... c5 {[%clk 0:03:00.3]} 4.
Bg2 {[%clk 0:02:48.8]} 4... Nf6 {[%clk 0:02:58.8]} 5. O-O {[%clk 0:02:48.3]}
5... Be7 {[%clk 0:02:56.5]} 6. c4 {[%clk 0:02:48.3]} 6... dxc4 {[%clk
0:02:55.7]} 7. dxc5 {[%clk 0:02:47.8]} 7... O-O {[%clk 0:02:52.6]} 8. Nc3 {[%clk
0:02:44.6]} 8... Na6 {[%clk 0:02:47]} 9. c6 {[%clk 0:02:41.7]} 9... bxc6 {[%clk
0:02:45.8]} 10. Qa4 {[%clk 0:02:36.7]} 10... Nc5 {[%clk 0:02:31.8]} 11. Qxc4
{[%clk 0:02:32.2]} 11... Ba6 {[%clk 0:02:32.3]} 12. Qf4 {[%clk 0:02:21.6]} 12...
Nd5 {[%clk 0:02:29.6]} 13. Nxd5 {[%clk 0:02:18.9]} 13... cxd5 {[%clk 0:02:30.5]}
14. Re1 {[%clk 0:02:01.3]} 14... Bf6 {[%clk 0:02:15.9]} 15. Ne5 {[%clk
0:01:54.8]} 15... Qb8 {[%clk 0:02:04.4]} 16. Nc6 {[%clk 0:01:34.1]} 16... Qxf4
{[%clk 0:02:01.1]} 17. Bxf4 {[%clk 0:01:35]} 17... Bxb2 {[%clk 0:01:54.9]} 18.
Rab1 {[%clk 0:01:35]} 18... Bf6 {[%clk 0:01:53.5]} 19. Rec1 {[%clk 0:01:24.2]}
19... Na4 {[%clk 0:01:49.7]} 20. e4 {[%clk 0:01:24.4]} 20... Nc3 {[%clk
0:01:47.1]} 21. Rxc3 {[%clk 0:01:14.5]} 21... Bxc3 {[%clk 0:01:46.7]} 22. exd5
{[%clk 0:01:14.8]} 22... exd5 {[%clk 0:01:25.7]} 23. Bxd5 {[%clk 0:01:15.3]}
23... Rae8 {[%clk 0:01:26.1]} 24. Nxa7 {[%clk 0:01:00]} 24... Bd3 {[%clk
0:01:22.5]} 25. Rd1 {[%clk 0:00:56.6]} 25... Bc2 {[%clk 0:01:17.9]} 26. Rc1
{[%clk 0:00:54.2]} 26... Re1+ {[%clk 0:01:18.5]} 27. Rxe1 {[%clk 0:00:54.4]}
27... Bxe1 {[%clk 0:01:19.4]} 28. Nc6 {[%clk 0:00:49.8]} 28... Re8 {[%clk
0:01:07.6]} 29. Be3 {[%clk 0:00:45.1]} 29... Be4 {[%clk 0:01:04.5]} 30. Bxe4
{[%clk 0:00:36.1]} 30... Rxe4 {[%clk 0:01:05.4]} 31. Nd4 {[%clk 0:00:34.7]}
31... Bc3 {[%clk 0:00:58]} 32. Nf5 {[%clk 0:00:31.6]} 32... Ra4 {[%clk
0:00:52.7]} 33. a3 {[%clk 0:00:23.5]} 33... Rxa3 {[%clk 0:00:52]} 34. Kg2 {[%clk
0:00:23.7]} 34... Ra5 {[%clk 0:00:50.7]} 35. Ne7+ {[%clk 0:00:22.3]} 35... Kh8
{[%clk 0:00:50]} 36. Nc6 {[%clk 0:00:22.9]} 36... Ra2 {[%clk 0:00:48.3]} 37. Kf3
{[%clk 0:00:22.8]} 37... Ra6 {[%clk 0:00:43.2]} 38. Ne7 {[%clk 0:00:22.3]} 38...
Rd6 {[%clk 0:00:39.5]} 39. Nf5 {[%clk 0:00:21.4]} 39... Rd5 {[%clk 0:00:38.5]}
40. Ne7 {[%clk 0:00:20.3]} 40... Re5 {[%clk 0:00:36.9]} 41. Nc6 {[%clk
0:00:19.6]} 41... Re6 {[%clk 0:00:37.4]} 42. Nd8 {[%clk 0:00:16.1]} 42... Rf6+
{[%clk 0:00:33.2]} 43. Ke2 {[%clk 0:00:15.5]} 43... Ba5 {[%clk 0:00:33.3]} 44.
Nb7 {[%clk 0:00:14.8]} 44... Bb4 {[%clk 0:00:31.7]} 45. Nc5 {[%clk 0:00:13.1]}
45... Bxc5 {[%clk 0:00:31.4]} 46. Bxc5 {[%clk 0:00:14]} 46... Rc6 {[%clk
0:00:30.7]} 47. Be3 {[%clk 0:00:13.7]} 47... g6 {[%clk 0:00:30]} 48. Kf3 {[%clk
0:00:14.6]} 48... Kg7 {[%clk 0:00:30.1]} 49. h3 {[%clk 0:00:15.5]} 49... f6
{[%clk 0:00:28.6]} 50. g4 {[%clk 0:00:16]} 50... Kf7 {[%clk 0:00:29]} 51. Ke4
{[%clk 0:00:16.4]} 51... Rc4+ {[%clk 0:00:29.2]} 52. Kf3 {[%clk 0:00:17]} 52...
Ra4 {[%clk 0:00:28.8]} 53. Bf4 {[%clk 0:00:16.8]} 53... Ra3+ {[%clk 0:00:28.7]}
54. Be3 {[%clk 0:00:17.7]} 54... Ke6 {[%clk 0:00:28.7]} 55. Ke4 {[%clk
0:00:17.7]} 55... Ra4+ {[%clk 0:00:28.2]} 56. Kf3 {[%clk 0:00:17.9]} 56... Ke5
{[%clk 0:00:27]} 57. Bb6 {[%clk 0:00:16.7]} 57... Ra3+ {[%clk 0:00:25.2]} 58.
Be3 {[%clk 0:00:17.6]} 58... Rb3 {[%clk 0:00:24.9]} 59. Ke2 {[%clk 0:00:16.4]}
59... Ke4 {[%clk 0:00:23.1]} 60. Bc1 {[%clk 0:00:13.5]} 60... Rxh3 {[%clk
0:00:22.3]} 61. Be3 {[%clk 0:00:14]} 61... Rf3 {[%clk 0:00:18.1]} 62. Bc1 {[%clk
0:00:10.8]} 62... h5 {[%clk 0:00:18.6]} 63. gxh5 {[%clk 0:00:10.6]} 63... gxh5
{[%clk 0:00:19.5]} 64. Bb2 {[%clk 0:00:07]} 64... h4 {[%clk 0:00:18.8]} 65. Bxf6
{[%clk 0:00:07.3]} 65... Rxf6 {[%clk 0:00:18.8]} 66. f3+ {[%clk 0:00:07.4]}
66... Rxf3 {[%clk 0:00:18.9]} 0-1

[Event "*** Titled Tuesday Blitz"]
[Site "Chess.com"]
[Date "2020.10.20"]
[Round "5"]
[White "MatyChess1"]
[Black "Rozum_Ivan"]
[Result "0-1"]
[WhiteElo "2548"]
[BlackElo "2739"]
[TimeControl "180+1"]
[EndTime "10:58:20 PDT"]
[Termination "Rozum_Ivan won by resignation"]

1. e4 {[%clk 0:03:00.5]} 1... c5 {[%clk 0:02:59]} 2. Nf3 {[%clk 0:03:00.4]} 2...
d6 {[%clk 0:02:57.2]} 3. Nc3 {[%clk 0:03:00]} 3... a6 {[%clk 0:02:54.3]} 4. g3
{[%clk 0:02:58.6]} 4... g6 {[%clk 0:02:54.2]} 5. d4 {[%clk 0:02:57.5]} 5... cxd4
{[%clk 0:02:53.8]} 6. Nxd4 {[%clk 0:02:58.4]} 6... Nf6 {[%clk 0:02:53.9]} 7. Bg2
{[%clk 0:02:58]} 7... Bg7 {[%clk 0:02:54]} 8. O-O {[%clk 0:02:58.5]} 8... O-O
{[%clk 0:02:54.4]} 9. h3 {[%clk 0:02:56.4]} 9... Nc6 {[%clk 0:02:53.5]} 10. Nde2
{[%clk 0:02:50.1]} 10... Rb8 {[%clk 0:02:50]} 11. Rb1 {[%clk 0:02:44.6]} 11...
b5 {[%clk 0:02:48.6]} 12. Be3 {[%clk 0:02:42.7]} 12... Bd7 {[%clk 0:02:41.9]}
13. Nd5 {[%clk 0:02:39]} 13... Re8 {[%clk 0:02:37.5]} 14. b3 {[%clk 0:02:28.7]}
14... Qc8 {[%clk 0:02:29.4]} 15. Kh2 {[%clk 0:02:25.9]} 15... Nxd5 {[%clk
0:02:20.3]} 16. exd5 {[%clk 0:02:25.6]} 16... Nb4 {[%clk 0:02:20.5]} 17. c3
{[%clk 0:01:26.2]} 17... Nxa2 {[%clk 0:02:19]} 18. Bd4 {[%clk 0:01:26.6]} 18...
Bxd4 {[%clk 0:02:03.7]} 19. Qxd4 {[%clk 0:01:25.4]} 19... b4 {[%clk 0:02:03.8]}
20. c4 {[%clk 0:01:21.4]} 20... Qc5 {[%clk 0:01:57.3]} 21. Qd2 {[%clk
0:01:20.9]} 21... Nc3 {[%clk 0:01:56.9]} 22. Nxc3 {[%clk 0:01:20.5]} 22... bxc3
{[%clk 0:01:57.8]} 23. Qxc3 {[%clk 0:01:21.4]} 23... Rb4 {[%clk 0:01:53.4]} 24.
Ra1 {[%clk 0:00:59]} 24... a5 {[%clk 0:01:51.2]} 25. h4 {[%clk 0:00:36.1]} 25...
a4 {[%clk 0:01:40.5]} 26. bxa4 {[%clk 0:00:34]} 26... Rxc4 {[%clk 0:01:40.9]}
27. Qb3 {[%clk 0:00:33.5]} 27... Rb4 {[%clk 0:01:40]} 28. Qd1 {[%clk 0:00:30.7]}
28... Ra8 {[%clk 0:01:37.6]} 29. Re1 {[%clk 0:00:21.2]} 29... Qxf2 {[%clk
0:01:34.9]} 30. Rxe7 {[%clk 0:00:20.5]} 30... Rb2 {[%clk 0:01:27.1]} 31. Qf1
{[%clk 0:00:15.2]} 31... Rxa4 {[%clk 0:01:06.9]} 32. Qxf2 {[%clk 0:00:08]} 32...
Rxf2 {[%clk 0:01:07.8]} 33. Rf1 {[%clk 0:00:03.2]} 33... Rxf1 {[%clk 0:00:59.4]}
34. Bxf1 {[%clk 0:00:04.1]} 34... Bf5 {[%clk 0:00:59.9]} 35. Re8+ {[%clk
0:00:02.7]} 35... Kg7 {[%clk 0:01:00.3]} 36. Rd8 {[%clk 0:00:03.6]} 36... Ra2+
{[%clk 0:01:00.4]} 37. Kg1 {[%clk 0:00:03.6]} 37... Kf6 {[%clk 0:00:53.2]} 38.
Rxd6+ {[%clk 0:00:03.4]} 38... Ke5 {[%clk 0:00:53.8]} 39. Rd8 {[%clk 0:00:04.3]}
39... Rd2 {[%clk 0:00:41.6]} 40. Bg2 {[%clk 0:00:04.8]} 40... h5 {[%clk
0:00:38.4]} 41. Re8+ {[%clk 0:00:05]} 41... Kd4 {[%clk 0:00:36.1]} 42. Re1
{[%clk 0:00:05.9]} 42... Bg4 {[%clk 0:00:30]} 43. Rf1 {[%clk 0:00:05.3]} 43...
f5 {[%clk 0:00:28]} 44. Re1 {[%clk 0:00:05.4]} 44... Kc5 {[%clk 0:00:20.9]} 45.
Re6 {[%clk 0:00:05.1]} 45... f4 {[%clk 0:00:18]} 46. Rc6+ {[%clk 0:00:01.1]}
46... Kb5 {[%clk 0:00:18.4]} 47. gxf4 {[%clk 0:00:02]} 47... Bf5 {[%clk
0:00:17.5]} 48. Bf1+ {[%clk 0:00:02.2]} 48... Kb4 {[%clk 0:00:17.4]} 49. Bg2
{[%clk 0:00:02.9]} 49... Rd4 {[%clk 0:00:15.6]} 50. Rc1 {[%clk 0:00:02.8]} 50...
Rxf4 {[%clk 0:00:15.3]} 51. Rf1 {[%clk 0:00:03.5]} 51... Rxh4 {[%clk 0:00:14.7]}
52. Rf2 {[%clk 0:00:03.6]} 52... Rd4 {[%clk 0:00:14.8]} 53. Re2 {[%clk
0:00:03.7]} 53... Kc5 {[%clk 0:00:14.2]} 54. Rf2 {[%clk 0:00:04.1]} 54... Kd6
{[%clk 0:00:12.3]} 55. Kh2 {[%clk 0:00:05]} 55... Rd3 {[%clk 0:00:10.4]} 56. Rf1
{[%clk 0:00:05.5]} 56... Rd2 {[%clk 0:00:10.3]} 57. Kg1 {[%clk 0:00:06.4]} 57...
h4 {[%clk 0:00:08.1]} 58. Re1 {[%clk 0:00:06.2]} 58... h3 {[%clk 0:00:08.2]} 59.
Bh1 {[%clk 0:00:06.7]} 59... h2+ {[%clk 0:00:08.5]} 60. Kf1 {[%clk 0:00:05.4]}
60... Bd3+ {[%clk 0:00:08.7]} 0-1

[Event "*** Titled Tuesday Blitz"]
[Site "Chess.com"]
[Date "2020.10.20"]
[Round "5"]
[White "bascheyaro"]
[Black "korbul"]
[Result "1-0"]
[WhiteElo "2731"]
[BlackElo "2530"]
[TimeControl "180+1"]
[EndTime "10:58:20 PDT"]
[Termination "bascheyaro won by resignation"]

1. d4 {[%clk 0:03:00.9]} 1... Nf6 {[%clk 0:02:59.3]} 2. Nf3 {[%clk 0:03:00.7]}
2... b6 {[%clk 0:02:58.8]} 3. Bf4 {[%clk 0:03:00.9]} 3... Bb7 {[%clk 0:02:57.2]}
4. e3 {[%clk 0:03:01.3]} 4... g6 {[%clk 0:02:55.5]} 5. Bd3 {[%clk 0:03:00.3]}
5... Bg7 {[%clk 0:02:55.3]} 6. O-O {[%clk 0:03:00.4]} 6... O-O {[%clk
0:02:55.2]} 7. Nbd2 {[%clk 0:02:59.8]} 7... d6 {[%clk 0:02:54.7]} 8. h3 {[%clk
0:02:59.9]} 8... c5 {[%clk 0:02:53.7]} 9. Qe2 {[%clk 0:02:58.9]} 9... a6 {[%clk
0:02:52.2]} 10. a4 {[%clk 0:02:52.8]} 10... Nbd7 {[%clk 0:02:51.8]} 11. Rfd1
{[%clk 0:02:49.8]} 11... Qb8 {[%clk 0:02:46.6]} 12. Bg3 {[%clk 0:02:42.9]} 12...
Qa7 {[%clk 0:02:44.5]} 13. c3 {[%clk 0:02:40.2]} 13... Rac8 {[%clk 0:02:43.5]}
14. Nc4 {[%clk 0:02:39.1]} 14... Qa8 {[%clk 0:02:37.4]} 15. dxc5 {[%clk
0:02:30.8]} 15... bxc5 {[%clk 0:02:36.4]} 16. Na5 {[%clk 0:02:27.6]} 16... Bxf3
{[%clk 0:02:32.1]} 17. Qxf3 {[%clk 0:02:28.5]} 17... Rfe8 {[%clk 0:02:19.7]} 18.
Qxa8 {[%clk 0:02:11.4]} 18... Rxa8 {[%clk 0:02:19.1]} 19. Rab1 {[%clk
0:02:11.7]} 19... Nb6 {[%clk 0:02:05.6]} 20. Bc2 {[%clk 0:02:11.8]} 20... Nfd7
{[%clk 0:02:00.4]} 21. f4 {[%clk 0:02:07.7]} 21... Rec8 {[%clk 0:01:58.8]} 22.
Bh4 {[%clk 0:02:06.8]} 22... Nf6 {[%clk 0:01:54]} 23. Bxf6 {[%clk 0:01:53.8]}
23... Bxf6 {[%clk 0:01:53]} 24. Be4 {[%clk 0:01:53.8]} 24... Ra7 {[%clk
0:01:51.5]} 25. Bc2 {[%clk 0:01:39.6]} 25... Kf8 {[%clk 0:01:50.2]} 26. Kf2
{[%clk 0:01:38.8]} 26... c4 {[%clk 0:01:46.1]} 27. g4 {[%clk 0:01:32.8]} 27...
Rc5 {[%clk 0:01:43.4]} 28. b4 {[%clk 0:01:23.4]} 28... cxb3 {[%clk 0:01:41.8]}
29. Nxb3 {[%clk 0:01:19.2]} 29... Rc8 {[%clk 0:01:37.5]} 30. Nd4 {[%clk
0:01:13.6]} 30... Bxd4 {[%clk 0:01:36.7]} 31. Rxd4 {[%clk 0:01:11]} 31... Nd7
{[%clk 0:01:36]} 32. Rb3 {[%clk 0:00:57.5]} 32... Nc5 {[%clk 0:01:34.9]} 33. Rb6
{[%clk 0:00:55.2]} 33... a5 {[%clk 0:01:29.6]} 34. Rc4 {[%clk 0:00:39.8]} 34...
Rcc7 {[%clk 0:01:28.1]} 35. Ke2 {[%clk 0:00:38]} 35... Rab7 {[%clk 0:01:25.3]}
36. Rxb7 {[%clk 0:00:22.1]} 36... Rxb7 {[%clk 0:01:26.2]} 37. Rd4 {[%clk
0:00:22.5]} 37... Rb2 {[%clk 0:01:25.3]} 38. Rd2 {[%clk 0:00:22.6]} 38... Ra2
{[%clk 0:01:23]} 39. h4 {[%clk 0:00:15.7]} 39... h6 {[%clk 0:01:22.2]} 40. g5
{[%clk 0:00:15.4]} 40... hxg5 {[%clk 0:01:22.1]} 41. hxg5 {[%clk 0:00:15.8]}
41... Kg7 {[%clk 0:01:22.4]} 42. Bd1 {[%clk 0:00:12.3]} 42... Ra3 {[%clk
0:01:18]} 43. Rb2 {[%clk 0:00:11.4]} 43... Nxa4 {[%clk 0:01:10.6]} 44. Bxa4
{[%clk 0:00:10.6]} 44... Rxa4 {[%clk 0:01:10.5]} 45. Kd3 {[%clk 0:00:11.5]}
45... d5 {[%clk 0:01:03.2]} 46. Rb7 {[%clk 0:00:11.9]} 46... e6 {[%clk
0:01:03.2]} 47. Ra7 {[%clk 0:00:11.8]} 47... Ra2 {[%clk 0:01:03]} 48. Ra8 {[%clk
0:00:09.1]} 48... a4 {[%clk 0:01:02]} 49. Ra7 {[%clk 0:00:09.5]} 49... a3 {[%clk
0:01:02.2]} 50. c4 {[%clk 0:00:08.7]} 50... dxc4+ {[%clk 0:00:59.2]} 51. Kxc4
{[%clk 0:00:09.1]} 51... Ra1 {[%clk 0:00:59.5]} 52. Kd4 {[%clk 0:00:06.2]} 52...
a2 {[%clk 0:00:56.9]} 53. Ke4 {[%clk 0:00:06.6]} 53... Kf8 {[%clk 0:00:57.2]}
54. Ke5 {[%clk 0:00:06.9]} 54... Ke8 {[%clk 0:00:56.7]} 55. Kf6 {[%clk
0:00:06.8]} 55... e5 {[%clk 0:00:48.3]} 56. Ra8+ {[%clk 0:00:03.6]} 56... Kd7
{[%clk 0:00:47.7]} 57. Kxf7 {[%clk 0:00:04.2]} 57... exf4 {[%clk 0:00:47.3]} 58.
exf4 {[%clk 0:00:05.1]} 58... Kc6 {[%clk 0:00:34.9]} 59. Kxg6 {[%clk 0:00:04.2]}
59... Kb7 {[%clk 0:00:35.2]} 60. Ra3 {[%clk 0:00:03.6]} 60... Kb6 {[%clk
0:00:35.1]} 61. f5 {[%clk 0:00:03.5]} 61... Kb5 {[%clk 0:00:35.6]} 62. f6 {[%clk
0:00:04]} 62... Kb4 {[%clk 0:00:36.2]} 63. Ra8 {[%clk 0:00:04.2]} 63... Kb3
{[%clk 0:00:34]} 64. f7 {[%clk 0:00:05.1]} 64... Rf1 {[%clk 0:00:33.4]} 65. Kg7
{[%clk 0:00:05.6]} 65... Rf4 {[%clk 0:00:31.4]} 66. Rxa2 {[%clk 0:00:05.5]}
66... Kxa2 {[%clk 0:00:30.9]} 67. f8=Q {[%clk 0:00:05.6]} 67... Rxf8 {[%clk
0:00:30]} 68. Kxf8 {[%clk 0:00:06.5]} 1-0

[Event "*** Titled Tuesday Blitz"]
[Site "Chess.com"]
[Date "2020.10.20"]
[Round "5"]
[White "Ariadna_Atreides"]
[Black "Walter_White_Poland"]
[Result "1/2-1/2"]
[WhiteElo "2064"]
[BlackElo "2300"]
[TimeControl "180+1"]
[EndTime "10:58:21 PDT"]
[Termination "Game drawn by repetition"]

1. d4 {[%clk 0:03:00.9]} 1... Nf6 {[%clk 0:02:59.3]} 2. Nf3 {[%clk 0:03:00.6]}
2... c5 {[%clk 0:02:58.9]} 3. e3 {[%clk 0:03:00.2]} 3... d5 {[%clk 0:02:58.4]}
4. Bd3 {[%clk 0:02:59.2]} 4... Nc6 {[%clk 0:02:56.7]} 5. O-O {[%clk 0:02:58.3]}
5... Bg4 {[%clk 0:02:55.9]} 6. c3 {[%clk 0:02:44.4]} 6... e6 {[%clk 0:02:54.9]}
7. h3 {[%clk 0:02:43.6]} 7... Bh5 {[%clk 0:02:54.5]} 8. Nbd2 {[%clk 0:02:41.2]}
8... Be7 {[%clk 0:02:53.9]} 9. Qc2 {[%clk 0:02:21.9]} 9... O-O {[%clk 0:02:51]}
10. Ne5 {[%clk 0:02:20.7]} 10... Rc8 {[%clk 0:02:45.7]} 11. Nxc6 {[%clk
0:02:16.3]} 11... Rxc6 {[%clk 0:02:44.8]} 12. dxc5 {[%clk 0:01:57.8]} 12... Rxc5
{[%clk 0:02:27.7]} 13. e4 {[%clk 0:01:54.5]} 13... e5 {[%clk 0:02:14.1]} 14.
exd5 {[%clk 0:01:45.2]} 14... Rxd5 {[%clk 0:02:07.2]} 15. Bc4 {[%clk 0:01:39.2]}
15... Rd7 {[%clk 0:01:59.5]} 16. Ne4 {[%clk 0:01:23.2]} 16... Qc7 {[%clk
0:01:45.4]} 17. Nxf6+ {[%clk 0:01:19.8]} 17... Bxf6 {[%clk 0:01:43.7]} 18. Bd3
{[%clk 0:01:14.2]} 18... Bg6 {[%clk 0:01:41.3]} 19. Bxg6 {[%clk 0:01:12.5]}
19... hxg6 {[%clk 0:01:40.2]} 20. Be3 {[%clk 0:01:12.3]} 20... Rfd8 {[%clk
0:01:38.9]} 21. Rfd1 {[%clk 0:01:10.8]} 21... b6 {[%clk 0:01:36.9]} 22. Qa4
{[%clk 0:01:01.5]} 22... Rd5 {[%clk 0:01:09.7]} 23. Rxd5 {[%clk 0:00:57.2]}
23... Rxd5 {[%clk 0:01:09.2]} 24. Rd1 {[%clk 0:00:57.7]} 24... Rxd1+ {[%clk
0:01:02.2]} 25. Qxd1 {[%clk 0:00:58.6]} 25... Qc4 {[%clk 0:01:01.4]} 26. a3
{[%clk 0:00:30.8]} 26... e4 {[%clk 0:00:58.3]} 27. Qd7 {[%clk 0:00:26.1]} 27...
a6 {[%clk 0:00:42.3]} 28. Bxb6 {[%clk 0:00:22.9]} 28... Qb3 {[%clk 0:00:42.5]}
29. Qe8+ {[%clk 0:00:17.8]} 29... Kh7 {[%clk 0:00:41.5]} 30. Bd4 {[%clk
0:00:16.2]} 30... Bxd4 {[%clk 0:00:35.4]} 31. cxd4 {[%clk 0:00:16.1]} 31... Qd1+
{[%clk 0:00:35.4]} 32. Kh2 {[%clk 0:00:15.1]} 32... Qxd4 {[%clk 0:00:36.3]} 33.
Qxf7 {[%clk 0:00:14.1]} 33... Qxb2 {[%clk 0:00:34.4]} 34. Qf4 {[%clk 0:00:12.1]}
34... Qe2 {[%clk 0:00:26.4]} 35. Qh4+ {[%clk 0:00:10.6]} 35... Kg8 {[%clk
0:00:26.1]} 36. Qd8+ {[%clk 0:00:09.6]} 36... Kf7 {[%clk 0:00:25.5]} 37. Qd7+
{[%clk 0:00:09]} 37... Kf6 {[%clk 0:00:25.4]} 38. Qd6+ {[%clk 0:00:08.7]} 38...
Kg5 {[%clk 0:00:14.4]} 39. Qe5+ {[%clk 0:00:07.1]} 39... Kh6 {[%clk 0:00:14]}
40. Qf4+ {[%clk 0:00:07.1]} 40... g5 {[%clk 0:00:10.9]} 41. Qd6+ {[%clk
0:00:06.8]} 41... Kh7 {[%clk 0:00:10.9]} 42. Qe5 {[%clk 0:00:05.1]} 42... Qxf2
{[%clk 0:00:07.8]} 43. Qxe4+ {[%clk 0:00:04.8]} 43... Kh6 {[%clk 0:00:08.4]} 44.
Qe6+ {[%clk 0:00:04.3]} 44... Qf6 {[%clk 0:00:08.4]} 45. Qe4 {[%clk 0:00:03.6]}
45... Qf4+ {[%clk 0:00:07.3]} 46. Qxf4 {[%clk 0:00:03.7]} 46... gxf4 {[%clk
0:00:08.2]} 47. g3 {[%clk 0:00:03.6]} 47... Kg5 {[%clk 0:00:08.4]} 48. gxf4+
{[%clk 0:00:03.4]} 48... Kxf4 {[%clk 0:00:09.1]} 49. Kg2 {[%clk 0:00:03.9]}
49... g5 {[%clk 0:00:08.8]} 50. Kf2 {[%clk 0:00:03.7]} 50... Ke5 {[%clk
0:00:07]} 51. Ke3 {[%clk 0:00:03.7]} 51... Kf5 {[%clk 0:00:07.3]} 52. Kf3 {[%clk
0:00:03.9]} 52... Kf6 {[%clk 0:00:06.4]} 53. Ke4 {[%clk 0:00:03.9]} 53... Ke6
{[%clk 0:00:06]} 54. a4 {[%clk 0:00:03.6]} 54... a5 {[%clk 0:00:05.2]} 55. Kd4
{[%clk 0:00:04.1]} 55... Kd6 {[%clk 0:00:05.5]} 56. Kc4 {[%clk 0:00:04.4]} 56...
Kc6 {[%clk 0:00:05.8]} 57. Kd4 {[%clk 0:00:04.5]} 57... Kd6 {[%clk 0:00:06]} 58.
Kc4 {[%clk 0:00:04.8]} 58... Kc6 {[%clk 0:00:06.3]} 59. Kd4 {[%clk 0:00:05.1]}
59... Kd6 {[%clk 0:00:06.6]} 1/2-1/2

[Event "*** Titled Tuesday Blitz"]
[Site "Chess.com"]
[Date "2020.10.20"]
[Round "5"]
[White "nitpicker"]
[Black "maxip32"]
[Result "0-1"]
[WhiteElo "2294"]
[BlackElo "2431"]
[TimeControl "180+1"]
[EndTime "10:58:22 PDT"]
[Termination "maxip32 won by resignation"]

1. d4 {[%clk 0:03:00.9]} 1... Nf6 {[%clk 0:02:59.2]} 2. c4 {[%clk 0:03:00.5]}
2... g6 {[%clk 0:02:58.8]} 3. Nc3 {[%clk 0:03:00.1]} 3... Bg7 {[%clk 0:02:59.3]}
4. e4 {[%clk 0:03:00.1]} 4... d6 {[%clk 0:03:00]} 5. Be2 {[%clk 0:03:00.2]} 5...
O-O {[%clk 0:03:00.3]} 6. Nf3 {[%clk 0:03:00.1]} 6... e5 {[%clk 0:02:56.3]} 7.
d5 {[%clk 0:02:59.6]} 7... a5 {[%clk 0:02:54.7]} 8. Be3 {[%clk 0:02:53.8]} 8...
Na6 {[%clk 0:02:46.6]} 9. Nd2 {[%clk 0:02:52.4]} 9... Nd7 {[%clk 0:02:45]} 10.
a3 {[%clk 0:02:47]} 10... f5 {[%clk 0:02:37.5]} 11. f3 {[%clk 0:02:46.7]} 11...
c5 {[%clk 0:02:20.1]} 12. dxc6 {[%clk 0:02:40.2]} 12... bxc6 {[%clk 0:02:19.1]}
13. b4 {[%clk 0:02:37.5]} 13... Bb7 {[%clk 0:02:13.2]} 14. Qb3 {[%clk
0:02:21.7]} 14... Kh8 {[%clk 0:02:12.5]} 15. O-O {[%clk 0:02:19.7]} 15... Qe7
{[%clk 0:01:55.6]} 16. Rfd1 {[%clk 0:02:04.2]} 16... Bf6 {[%clk 0:01:20.7]} 17.
Nf1 {[%clk 0:01:57.1]} 17... Rfd8 {[%clk 0:01:18.2]} 18. Ra2 {[%clk 0:01:37.6]}
18... axb4 {[%clk 0:01:05.6]} 19. axb4 {[%clk 0:01:34.4]} 19... c5 {[%clk
0:01:06.1]} 20. b5 {[%clk 0:01:27.5]} 20... Nb4 {[%clk 0:01:06.4]} 21. Rad2
{[%clk 0:01:27.5]} 21... Nb6 {[%clk 0:00:46.7]} 22. Bf2 {[%clk 0:01:22.2]} 22...
Bg5 {[%clk 0:00:44.7]} 23. Ne3 {[%clk 0:01:20.5]} 23... fxe4 {[%clk 0:00:39]}
24. Nxe4 {[%clk 0:01:12.4]} 24... Bxe4 {[%clk 0:00:37.5]} 25. fxe4 {[%clk
0:01:13.3]} 25... Nc8 {[%clk 0:00:20.5]} 26. Nd5 {[%clk 0:01:06.1]} 26... Nxd5
{[%clk 0:00:17.9]} 27. Rxd5 {[%clk 0:01:06.6]} 27... Nb6 {[%clk 0:00:16.2]} 28.
R5d3 {[%clk 0:01:01.1]} 28... Qf8 {[%clk 0:00:14.8]} 29. h4 {[%clk 0:00:46.2]}
29... Be7 {[%clk 0:00:15]} 30. g3 {[%clk 0:00:36.1]} 30... Qg8 {[%clk
0:00:14.5]} 31. Rc3 {[%clk 0:00:28.3]} 31... Ra4 {[%clk 0:00:14.5]} 32. Kg2
{[%clk 0:00:13.5]} 32... Rda8 {[%clk 0:00:14.6]} 33. Qc2 {[%clk 0:00:10.8]}
33... Ra2 {[%clk 0:00:14.4]} 34. Qd3 {[%clk 0:00:11.1]} 34... Qf7 {[%clk
0:00:13.6]} 35. Qf3 {[%clk 0:00:10.3]} 35... Qxf3+ {[%clk 0:00:12.8]} 36. Kxf3
{[%clk 0:00:09.5]} 36... R8a4 {[%clk 0:00:13.3]} 37. Bf1 {[%clk 0:00:07.8]}
37... Kg7 {[%clk 0:00:11.7]} 38. Be3 {[%clk 0:00:07.8]} 38... Rb2 {[%clk
0:00:11.6]} 39. Rd2 {[%clk 0:00:06.4]} 39... Rbb4 {[%clk 0:00:10.2]} 40. Rdc2
{[%clk 0:00:06.3]} 40... h6 {[%clk 0:00:10.3]} 41. Be2 {[%clk 0:00:06.4]} 41...
Ra1 {[%clk 0:00:10.5]} 42. Bd3 {[%clk 0:00:04.8]} 42... Raa4 {[%clk 0:00:08.8]}
43. Be2 {[%clk 0:00:04.6]} 43... g5 {[%clk 0:00:08.5]} 44. hxg5 {[%clk 0:00:04]}
44... Bxg5 {[%clk 0:00:09.1]} 45. Bxg5 {[%clk 0:00:02.9]} 45... hxg5 {[%clk
0:00:10]} 46. Ke3 {[%clk 0:00:02.4]} 46... Kf6 {[%clk 0:00:10.1]} 47. Kd3 {[%clk
0:00:01.1]} 47... Nd7 {[%clk 0:00:04.5]} 48. Bg4 {[%clk 0:00:01.2]} 48... Nf8
{[%clk 0:00:04.4]} 49. Bf5 {[%clk 0:00:01.6]} 49... Ke7 {[%clk 0:00:05]} 50. Bg4
{[%clk 0:00:01.6]} 50... Ne6 {[%clk 0:00:04.4]} 51. Bf5 {[%clk 0:00:02.1]} 51...
Nd4 {[%clk 0:00:04.2]} 52. Bg4 {[%clk 0:00:01.9]} 52... Nxc2 {[%clk 0:00:04]}
53. Rxc2 {[%clk 0:00:01.6]} 53... Rb3+ {[%clk 0:00:04.4]} 54. Rc3 {[%clk
0:00:01.2]} 54... Rxc3+ {[%clk 0:00:04.9]} 55. Kxc3 {[%clk 0:00:01.6]} 55...
Ra3+ {[%clk 0:00:05.8]} 56. Kb2 {[%clk 0:00:01.7]} 56... Rxg3 {[%clk 0:00:06.7]}
57. b6 {[%clk 0:00:02.1]} 57... Kd8 {[%clk 0:00:07]} 58. b7 {[%clk 0:00:02.1]}
58... Kc7 {[%clk 0:00:07]} 59. Be6 {[%clk 0:00:02.1]} 59... Re3 {[%clk
0:00:07.2]} 60. Bd5 {[%clk 0:00:03]} 60... g4 {[%clk 0:00:07.5]} 61. Kc2 {[%clk
0:00:03.1]} 61... g3 {[%clk 0:00:07.9]} 62. Kd2 {[%clk 0:00:04]} 62... g2 {[%clk
0:00:07.8]} 63. Kxe3 {[%clk 0:00:04.9]} 63... g1=Q+ {[%clk 0:00:08.1]} 64. Kf3
{[%clk 0:00:04.8]} 64... Qf1+ {[%clk 0:00:08]} 65. Ke3 {[%clk 0:00:04.9]} 65...
Qf4+ {[%clk 0:00:08.1]} 0-1